[Event "Titled Tuesday Blitz April 12 Late 2022"]
[White "Stelmaszyk, Nico"]
[Black "Lalanne, Pablo"]
[WhiteFideId "16200462"]
[BlackFideId "112151"]
[WhiteElo "2119"]
[BlackElo "2120"]
[Result "1/2-1/2"]
[Round "08"]
[TimeControl "180+1"]
[Date "2022.04.13"]
[WhiteClock "0:01:12"]
[BlackClock "0:00:12"]

1. e4 {[%clk 0:02:58]}  c5 {[%clk 0:02:59]} 2. Nf3 {[%clk 0:02:57]}  d6 {[%clk 0:02:59]} 3. c3 {[%clk 0:02:57]}  Nf6 {[%clk 0:02:59]} 4. Be2 {[%clk 0:02:56]}  Nc6 {[%clk 0:02:59]} 5. d4 {[%clk 0:02:55]}  cxd4 {[%clk 0:02:58]} 6. cxd4 {[%clk 0:02:56]}  d5 {[%clk 0:02:57]} 7. e5 {[%clk 0:02:56]}  Ne4 {[%clk 0:02:57]} 8. O-O {[%clk 0:02:57]}  Bg4 {[%clk 0:02:52]} 9. h3 {[%clk 0:02:57]}  Bh5 {[%clk 0:02:51]} 10. e6 {[%clk 0:02:57]}  fxe6 {[%clk 0:02:30]} 11. Re1 {[%clk 0:02:57]}  Qb6 {[%clk 0:02:15]} 12. Nc3 {[%clk 0:02:45]}  Bxf3 {[%clk 0:02:08]} 13. Bxf3 {[%clk 0:02:41]}  Qxd4 {[%clk 0:02:03]} 14. Bxe4 {[%clk 0:02:37]}  Qxd1 {[%clk 0:02:00]} 15. Rxd1 {[%clk 0:02:33]}  dxe4 {[%clk 0:02:00]} 16. Nxe4 {[%clk 0:02:31]}  Rd8 {[%clk 0:01:52]} 17. Be3 {[%clk 0:02:31]}  Rd5 {[%clk 0:01:50]} 18. Nc3 {[%clk 0:02:25]}  Rxd1+ {[%clk 0:01:47]} 19. Rxd1 {[%clk 0:02:26]}  g6 {[%clk 0:01:40]} 20. Nb5 {[%clk 0:02:24]}  a6 {[%clk 0:01:30]} 21. Nc7+ {[%clk 0:02:24]}  Kf7 {[%clk 0:01:30]} 22. Bd4 {[%clk 0:02:09]}  Nxd4 {[%clk 0:01:29]} 23. Rxd4 {[%clk 0:02:10]}  Bg7 {[%clk 0:01:27]} 24. Rb4 {[%clk 0:02:08]}  Rd8 {[%clk 0:01:07]} 25. g3 {[%clk 0:01:55]}  Rd1+ {[%clk 0:01:03]} 26. Kg2 {[%clk 0:01:55]}  Rd2 {[%clk 0:01:02]} 27. Rxb7 {[%clk 0:01:53]}  Bxb2 {[%clk 0:00:57]} 28. Rb4 {[%clk 0:01:38]}  e5 {[%clk 0:00:48]} 29. Rb3 {[%clk 0:01:29]}  e4 {[%clk 0:00:40]} 30. Re3 {[%clk 0:01:23]}  e5 {[%clk 0:00:22]} 31. Rxe4 {[%clk 0:01:12]}  Bd4 {[%clk 0:00:21]} 32. Nxa6 {[%clk 0:01:08]}  Rxf2+ {[%clk 0:00:20]} 33. Kh1 {[%clk 0:01:08]}  Rxa2 {[%clk 0:00:21]} 34. Nb4 {[%clk 0:01:05]}  Rb2 {[%clk 0:00:18]} 35. Nc6 {[%clk 0:01:02]}  Bc3 {[%clk 0:00:16]} 36. Nxe5+ {[%clk 0:01:01]}  Bxe5 {[%clk 0:00:14]} 37. Rxe5 {[%clk 0:01:02]}  Kf6 {[%clk 0:00:15]} 38. Re4 {[%clk 0:01:02]}  g5 {[%clk 0:00:13]} 39. Rg4 {[%clk 0:01:01]}  h5 {[%clk 0:00:13]} 40. Rc4 {[%clk 0:01:01]}  Kf5 {[%clk 0:00:13]} 41. Kg1 {[%clk 0:01:02]}  Ra2 {[%clk 0:00:12]} 42. Kf1 {[%clk 0:01:02]}  Ke5 {[%clk 0:00:11]} 43. Rc5+ {[%clk 0:01:01]}  Kf6 {[%clk 0:00:11]} 44. Kg1 {[%clk 0:01:01]}  Kg6 {[%clk 0:00:11]} 45. Rb5 {[%clk 0:01:01]}  Kf6 {[%clk 0:00:11]} 46. Rd5 {[%clk 0:01:02]}  Kg6 {[%clk 0:00:11]} 47. Rd4 {[%clk 0:01:02]}  Kf6 {[%clk 0:00:12]} 48. Rd3 {[%clk 0:01:03]}  Kf5 {[%clk 0:00:12]} 49. Re3 {[%clk 0:01:03]}  Kf6 {[%clk 0:00:12]} 50. Rd3 {[%clk 0:01:04]}  Kf5 {[%clk 0:00:12]} 51. Rc3 {[%clk 0:01:04]}  Kf6 {[%clk 0:00:13]} 52. Rb3 {[%clk 0:01:05]}  Kf5 {[%clk 0:00:13]} 53. Rb5+ {[%clk 0:01:06]}  Kf6 {[%clk 0:00:13]} 54. h4 {[%clk 0:01:06]}  gxh4 {[%clk 0:00:12]} 55. gxh4 {[%clk 0:01:07]}  Kg6 {[%clk 0:00:12]} 56. Rg5+ {[%clk 0:01:05]}  Kh6 {[%clk 0:00:13]} 57. Rc5 {[%clk 0:01:06]}  Ra4 {[%clk 0:00:12]} 58. Rc6+ {[%clk 0:01:05]}  Kh7 {[%clk 0:00:12]} 59. Rc7+ {[%clk 0:01:06]}  Kg6 {[%clk 0:00:13]} 60. Rc6+ {[%clk 0:01:07]}  Kf7 {[%clk 0:00:13]} 61. Rc7+ {[%clk 0:01:06]}  Kg6 {[%clk 0:00:13]} 62. Rc6+ {[%clk 0:01:07]}  Kf7 {[%clk 0:00:14]} 63. Rc7+ {[%clk 0:01:07]}  Ke6 {[%clk 0:00:14]} 64. Rc6+ {[%clk 0:01:08]}  Kd7 {[%clk 0:00:15]} 65. Rh6 {[%clk 0:01:06]}  Rxh4 {[%clk 0:00:15]} 66. Kg2 {[%clk 0:01:07]}  Ke7 {[%clk 0:00:15]} 67. Kg3 {[%clk 0:01:07]}  Rg4+ {[%clk 0:00:15]} 68. Kh3 {[%clk 0:01:08]}  Rg5 {[%clk 0:00:15]} 69. Kh4 {[%clk 0:01:08]}  Ra5 {[%clk 0:00:16]} 70. Rh7+ {[%clk 0:01:09]}  Kf6 {[%clk 0:00:15]} 71. Rh6+ {[%clk 0:01:10]}  Kg7 {[%clk 0:00:16]} 72. Rb6 {[%clk 0:01:10]}  Kh7 {[%clk 0:00:15]} 73. Rc6 {[%clk 0:01:10]}  Kg7 {[%clk 0:00:14]} 74. Rd6 {[%clk 0:01:10]}  Kh7 {[%clk 0:00:15]} 75. Re6 {[%clk 0:01:11]}  Kg7 {[%clk 0:00:15]} 76. Re7+ {[%clk 0:01:11]}  Kg6 {[%clk 0:00:15]} 77. Re6+ {[%clk 0:01:11]}  Kf5 {[%clk 0:00:15]} 78. Rb6 {[%clk 0:01:10]}  Kf4 {[%clk 0:00:16]} 79. Rf6+ {[%clk 0:01:09]}  Rf5 {[%clk 0:00:15]} 80. Re6 {[%clk 0:01:08]}  Re5 {[%clk 0:00:14]} 81. Rd6 {[%clk 0:01:07]}  Ke4 {[%clk 0:00:13]} 82. Rc6 {[%clk 0:01:08]}  Kd4 {[%clk 0:00:13]} 83. Rb6 {[%clk 0:01:08]}  Ke4 {[%clk 0:00:13]} 84. Ra6 {[%clk 0:01:09]}  Kf4 {[%clk 0:00:13]} 85. Ra4+ {[%clk 0:01:09]}  Kf3 {[%clk 0:00:13]} 86. Ra8 {[%clk 0:01:07]}  Kf4 {[%clk 0:00:12]} 87. Rf8+ {[%clk 0:01:08]}  Rf5 {[%clk 0:00:12]} 88. Rg8 {[%clk 0:01:08]}  Ke4 {[%clk 0:00:12]} 89. Rh8 {[%clk 0:01:09]}  Kf4 {[%clk 0:00:12]} 90. Rb8 {[%clk 0:01:08]}  Ke4 {[%clk 0:00:12]} 91. Rb4+ {[%clk 0:01:08]}  Ke5 {[%clk 0:00:12]} 92. Rb5+ {[%clk 0:01:09]}  Kf4 {[%clk 0:00:12]} 93. Rb4+ {[%clk 0:01:09]}  Ke5 {[%clk 0:00:13]} 94. Rb3 {[%clk 0:01:10]}  Kf4 {[%clk 0:00:13]} 95. Rb1 {[%clk 0:01:10]}  Ke4 {[%clk 0:00:13]} 96. Rd1 {[%clk 0:01:10]}  Ke5 {[%clk 0:00:12]} 97. Re1+ {[%clk 0:01:10]}  Kf4 {[%clk 0:00:12]} 98. Rf1+ {[%clk 0:01:10]}  Ke5 {[%clk 0:00:12]} 99. Rxf5+ {[%clk 0:01:11]}  Kxf5 {[%clk 0:00:12]} 100. Kxh5 {[%clk 0:01:12]} 1/2-1/2


[Site "https://www.chess.com"]

[Event "Titled Tuesday Blitz April 12 Late 2022"]
[White "Svane, Rasmus"]
[Black "Quesada Perez, Yuniesky"]
[WhiteFideId "4657101"]
[BlackFideId "3504409"]
[WhiteElo "2645"]
[BlackElo "2622"]
[Result "1-0"]
[Round "08"]
[TimeControl "180+1"]
[Date "2022.04.12"]
[WhiteClock "0:00:19"]
[BlackClock "0:00:02"]

1. Nf3 {[%clk 0:03:00]}  d5 {[%clk 0:02:59]} 2. g3 {[%clk 0:03:00]}  Nf6 {[%clk 0:02:58]} 3. Bg2 {[%clk 0:03:00]}  Bf5 {[%clk 0:02:58]} 4. O-O {[%clk 0:03:01]}  e6 {[%clk 0:02:55]} 5. c4 {[%clk 0:03:01]}  c6 {[%clk 0:02:55]} 6. Qb3 {[%clk 0:03:01]}  Qb6 {[%clk 0:02:52]} 7. d3 {[%clk 0:03:01]}  Nbd7 {[%clk 0:02:50]} 8. cxd5 {[%clk 0:03:01]}  Qxb3 {[%clk 0:02:45]} 9. axb3 {[%clk 0:03:02]}  exd5 {[%clk 0:02:45]} 10. Bd2 {[%clk 0:03:03]}  Bd6 {[%clk 0:02:44]} 11. Bc3 {[%clk 0:03:03]}  O-O {[%clk 0:02:43]} 12. b4 {[%clk 0:03:03]}  Rfe8 {[%clk 0:02:40]} 13. Nd4 {[%clk 0:03:03]}  Bg6 {[%clk 0:02:37]} 14. Nd2 {[%clk 0:03:03]}  a6 {[%clk 0:02:23]} 15. N2b3 {[%clk 0:03:01]}  Nf8 {[%clk 0:02:18]} 16. Bh3 {[%clk 0:02:55]}  Rad8 {[%clk 0:02:15]} 17. Rfe1 {[%clk 0:02:54]}  Ne6 {[%clk 0:02:11]} 18. Kf1 {[%clk 0:02:41]}  Nxd4 {[%clk 0:02:05]} 19. Nxd4 {[%clk 0:02:42]}  Nd7 {[%clk 0:02:04]} 20. f4 {[%clk 0:02:39]}  h6 {[%clk 0:01:45]} 21. Nb3 {[%clk 0:02:29]}  Re7 {[%clk 0:01:34]} 22. Rad1 {[%clk 0:02:18]}  Rde8 {[%clk 0:01:32]} 23. e4 {[%clk 0:02:18]}  Nb6 {[%clk 0:01:07]} 24. e5 {[%clk 0:02:11]}  Bb8 {[%clk 0:01:05]} 25. Nc5 {[%clk 0:02:07]}  d4 {[%clk 0:00:51]} 26. Bxd4 {[%clk 0:02:06]}  Nd5 {[%clk 0:00:52]} 27. Bc3 {[%clk 0:02:01]}  Bh7 {[%clk 0:00:51]} 28. d4 {[%clk 0:01:43]}  f5 {[%clk 0:00:50]} 29. Bg2 {[%clk 0:01:27]}  Bg6 {[%clk 0:00:43]} 30. Bxd5+ {[%clk 0:01:24]}  cxd5 {[%clk 0:00:44]} 31. Ra1 {[%clk 0:01:18]}  Rc8 {[%clk 0:00:43]} 32. Kf2 {[%clk 0:01:07]}  Be8 {[%clk 0:00:43]} 33. h3 {[%clk 0:01:06]}  Bb5 {[%clk 0:00:42]} 34. Ke3 {[%clk 0:01:03]}  Rf8 {[%clk 0:00:41]} 35. Rg1 {[%clk 0:01:02]}  Ref7 {[%clk 0:00:39]} 36. Rad1 {[%clk 0:00:57]}  Kh7 {[%clk 0:00:38]} 37. Rd2 {[%clk 0:00:58]}  g5 {[%clk 0:00:38]} 38. Rf2 {[%clk 0:00:56]}  Rg8 {[%clk 0:00:36]} 39. g4 {[%clk 0:00:46]}  fxg4 {[%clk 0:00:34]} 40. Rxg4 {[%clk 0:00:44]}  Rgf8 {[%clk 0:00:33]} 41. Be1 {[%clk 0:00:40]}  Ba7 {[%clk 0:00:27]} 42. fxg5 {[%clk 0:00:37]}  Rxf2 {[%clk 0:00:24]} 43. Bxf2 {[%clk 0:00:38]}  hxg5 {[%clk 0:00:23]} 44. Rxg5 {[%clk 0:00:36]}  b6 {[%clk 0:00:15]} 45. Ne6 {[%clk 0:00:33]}  Rf7 {[%clk 0:00:14]} 46. Nf4 {[%clk 0:00:34]}  Rc7 {[%clk 0:00:13]} 47. Nxd5 {[%clk 0:00:31]}  Rc2 {[%clk 0:00:12]} 48. Bg3 {[%clk 0:00:28]}  Re2+ {[%clk 0:00:07]} 49. Kf3 {[%clk 0:00:28]}  Rxb2 {[%clk 0:00:07]} 50. Nf6+ {[%clk 0:00:28]}  Kh6 {[%clk 0:00:06]} 51. Bf4 {[%clk 0:00:28]}  Rb3+ {[%clk 0:00:03]} 52. Kf2 {[%clk 0:00:27]}  Rb2+ {[%clk 0:00:03]} 53. Ke1 {[%clk 0:00:25]}  Re2+ {[%clk 0:00:02]} 54. Kd1 {[%clk 0:00:25]}  Rf2 {[%clk 0:00:02]} 55. Be3 {[%clk 0:00:19]} 1-0


[Site "https://www.chess.com"]

[Event "Titled Tuesday Blitz April 12 Late 2022"]
[White "Tillyaev, Ulugbek"]
[Black "Migot, Tangi"]
[WhiteFideId "14202441"]
[BlackFideId "662445"]
[WhiteElo "2377"]
[BlackElo "2530"]
[Result "1-0"]
[Round "08"]
[TimeControl "180+1"]
[Date "2022.04.13"]
[WhiteClock "0:00:17"]
[BlackClock "0:00:09"]

1. e4 {[%clk 0:02:59]}  c5 {[%clk 0:02:59]} 2. d4 {[%clk 0:02:59]}  cxd4 {[%clk 0:02:59]} 3. c3 {[%clk 0:02:59]}  Nf6 {[%clk 0:02:59]} 4. e5 {[%clk 0:02:58]}  Nd5 {[%clk 0:02:59]} 5. Qxd4 {[%clk 0:02:59]}  e6 {[%clk 0:02:59]} 6. Nf3 {[%clk 0:02:59]}  Nc6 {[%clk 0:02:58]} 7. Qe4 {[%clk 0:03:00]}  f5 {[%clk 0:02:57]} 8. Qe2 {[%clk 0:03:00]}  Qc7 {[%clk 0:02:57]} 9. c4 {[%clk 0:02:50]}  Bb4+ {[%clk 0:02:53]} 10. Nbd2 {[%clk 0:02:34]}  Nf4 {[%clk 0:02:49]} 11. Qe3 {[%clk 0:02:34]}  g5 {[%clk 0:02:48]} 12. a3 {[%clk 0:02:25]}  Be7 {[%clk 0:02:41]} 13. b4 {[%clk 0:02:25]}  Ng6 {[%clk 0:02:39]} 14. Bb2 {[%clk 0:02:24]}  g4 {[%clk 0:02:38]} 15. b5 {[%clk 0:01:45]}  gxf3 {[%clk 0:02:35]} 16. bxc6 {[%clk 0:01:45]}  Qxc6 {[%clk 0:02:24]} 17. Nxf3 {[%clk 0:01:42]}  b6 {[%clk 0:02:10]} 18. Nd4 {[%clk 0:01:29]}  Qc5 {[%clk 0:02:06]} 19. Nb5 {[%clk 0:01:27]}  O-O {[%clk 0:02:02]} 20. Bd4 {[%clk 0:01:20]}  Qc6 {[%clk 0:01:56]} 21. Be2 {[%clk 0:01:20]}  Bb7 {[%clk 0:01:53]} 22. Bf3 {[%clk 0:01:17]}  Qc8 {[%clk 0:01:52]} 23. Bxb7 {[%clk 0:00:58]}  Qxb7 {[%clk 0:01:53]} 24. O-O {[%clk 0:00:59]}  Rac8 {[%clk 0:01:48]} 25. Rac1 {[%clk 0:00:52]}  f4 {[%clk 0:01:43]} 26. Qd3 {[%clk 0:00:49]}  f3 {[%clk 0:01:40]} 27. g3 {[%clk 0:00:49]}  Rf5 {[%clk 0:01:24]} 28. Rfe1 {[%clk 0:00:50]}  Qb8 {[%clk 0:01:12]} 29. Re3 {[%clk 0:00:40]}  Bg5 {[%clk 0:01:07]} 30. Nd6 {[%clk 0:00:30]}  Bxe3 {[%clk 0:01:05]} 31. Qxe3 {[%clk 0:00:30]}  Rff8 {[%clk 0:00:58]} 32. Nxc8 {[%clk 0:00:30]}  Qxc8 {[%clk 0:00:58]} 33. c5 {[%clk 0:00:29]}  b5 {[%clk 0:00:58]} 34. c6 {[%clk 0:00:30]}  dxc6 {[%clk 0:00:58]} 35. Bxa7 {[%clk 0:00:30]}  Qd7 {[%clk 0:00:55]} 36. Bc5 {[%clk 0:00:29]}  Rf5 {[%clk 0:00:50]} 37. Bd6 {[%clk 0:00:29]}  Kg7 {[%clk 0:00:35]} 38. Qe4 {[%clk 0:00:29]}  c5 {[%clk 0:00:34]} 39. Rxc5 {[%clk 0:00:29]}  Rf7 {[%clk 0:00:30]} 40. Rc7 {[%clk 0:00:27]}  Qe8 {[%clk 0:00:30]} 41. Rxf7+ {[%clk 0:00:24]}  Qxf7 {[%clk 0:00:31]} 42. Qc6 {[%clk 0:00:22]}  Qf5 {[%clk 0:00:29]} 43. Qc1 {[%clk 0:00:21]}  h5 {[%clk 0:00:20]} 44. Qf1 {[%clk 0:00:17]}  Nxe5 {[%clk 0:00:14]} 45. Qxb5 {[%clk 0:00:16]}  Nd3 {[%clk 0:00:12]} 46. Qxf5 {[%clk 0:00:16]}  exf5 {[%clk 0:00:11]} 47. a4 {[%clk 0:00:16]}  Kf7 {[%clk 0:00:10]} 48. a5 {[%clk 0:00:17]}  Ke6 {[%clk 0:00:10]} 49. a6 {[%clk 0:00:17]}  Kxd6 {[%clk 0:00:09]} 50. a7 {[%clk 0:00:17]}  Kc7 {[%clk 0:00:09]} 51. a8=Q {[%clk 0:00:17]} 1-0


[Site "https://www.chess.com"]

[Event "Titled Tuesday Blitz April 12 Late 2022"]
[White "Urazayev, Arystanbek"]
[Black "Soysal, Serkan"]
[WhiteFideId "13709810"]
[BlackFideId "6349250"]
[WhiteElo "2422"]
[BlackElo "2440"]
[Result "1-0"]
[Round "08"]
[TimeControl "180+1"]
[Date "2022.04.12"]
[WhiteClock "0:00:13"]
[BlackClock "0:00:02"]

1. d4 {[%clk 0:03:00]}  d5 {[%clk 0:02:58]} 2. c4 {[%clk 0:03:01]}  c6 {[%clk 0:02:59]} 3. Nf3 {[%clk 0:03:01]}  Nf6 {[%clk 0:02:59]} 4. e3 {[%clk 0:03:02]}  Bg4 {[%clk 0:02:59]} 5. h3 {[%clk 0:03:01]}  Bxf3 {[%clk 0:02:58]} 6. Qxf3 {[%clk 0:03:01]}  e6 {[%clk 0:02:59]} 7. Nc3 {[%clk 0:02:58]}  Bb4 {[%clk 0:02:56]} 8. Bd2 {[%clk 0:02:58]}  a5 {[%clk 0:02:56]} 9. Bd3 {[%clk 0:02:57]}  Nbd7 {[%clk 0:02:55]} 10. O-O {[%clk 0:02:57]}  O-O {[%clk 0:02:46]} 11. Rac1 {[%clk 0:02:57]}  Re8 {[%clk 0:02:42]} 12. Rfd1 {[%clk 0:02:55]}  Qe7 {[%clk 0:02:36]} 13. a3 {[%clk 0:02:53]}  Bxc3 {[%clk 0:02:17]} 14. Bxc3 {[%clk 0:02:54]}  a4 {[%clk 0:02:12]} 15. Bb4 {[%clk 0:02:52]}  Qd8 {[%clk 0:02:12]} 16. Bd6 {[%clk 0:02:45]}  e5 {[%clk 0:02:00]} 17. Bf5 {[%clk 0:02:17]}  exd4 {[%clk 0:01:28]} 18. Rxd4 {[%clk 0:02:16]}  Ne5 {[%clk 0:01:24]} 19. Bxe5 {[%clk 0:02:16]}  Rxe5 {[%clk 0:01:25]} 20. cxd5 {[%clk 0:02:11]}  Rxd5 {[%clk 0:01:21]} 21. Rcd1 {[%clk 0:02:10]}  Qe7 {[%clk 0:01:02]} 22. Bc2 {[%clk 0:01:56]}  Rb5 {[%clk 0:00:55]} 23. Qe2 {[%clk 0:01:47]}  Rba5 {[%clk 0:00:39]} 24. Qd2 {[%clk 0:01:45]}  g6 {[%clk 0:00:37]} 25. e4 {[%clk 0:01:43]}  Re5 {[%clk 0:00:21]} 26. f3 {[%clk 0:01:15]}  b5 {[%clk 0:00:20]} 27. Rd6 {[%clk 0:01:12]}  Re6 {[%clk 0:00:20]} 28. Rd8+ {[%clk 0:00:58]}  Rxd8 {[%clk 0:00:19]} 29. Qxd8+ {[%clk 0:00:59]}  Qxd8 {[%clk 0:00:20]} 30. Rxd8+ {[%clk 0:00:59]}  Kg7 {[%clk 0:00:20]} 31. Kf2 {[%clk 0:00:59]}  Re5 {[%clk 0:00:18]} 32. f4 {[%clk 0:00:51]}  Rc5 {[%clk 0:00:19]} 33. Rd2 {[%clk 0:00:50]}  Rc4 {[%clk 0:00:15]} 34. Kf3 {[%clk 0:00:50]}  h5 {[%clk 0:00:15]} 35. e5 {[%clk 0:00:48]}  Nd5 {[%clk 0:00:15]} 36. Be4 {[%clk 0:00:49]}  Ne7 {[%clk 0:00:05]} 37. g4 {[%clk 0:00:49]}  hxg4+ {[%clk 0:00:05]} 38. hxg4 {[%clk 0:00:50]}  Nd5 {[%clk 0:00:04]} 39. Bxd5 {[%clk 0:00:50]}  cxd5 {[%clk 0:00:05]} 40. Rxd5 {[%clk 0:00:51]}  b4 {[%clk 0:00:06]} 41. Rd3 {[%clk 0:00:30]}  bxa3 {[%clk 0:00:05]} 42. bxa3 {[%clk 0:00:31]}  g5 {[%clk 0:00:05]} 43. f5 {[%clk 0:00:27]}  Rf4+ {[%clk 0:00:05]} 44. Kg3 {[%clk 0:00:24]}  Re4 {[%clk 0:00:04]} 45. Rd5 {[%clk 0:00:24]}  Re3+ {[%clk 0:00:04]} 46. Kf2 {[%clk 0:00:25]}  Rxa3 {[%clk 0:00:05]} 47. f6+ {[%clk 0:00:26]}  Kg6 {[%clk 0:00:04]} 48. Rd8 {[%clk 0:00:26]}  Ra2+ {[%clk 0:00:05]} 49. Ke3 {[%clk 0:00:26]}  Ra3+ {[%clk 0:00:05]} 50. Ke4 {[%clk 0:00:26]}  Rg3 {[%clk 0:00:04]} 51. Rg8+ {[%clk 0:00:26]}  Kh6 {[%clk 0:00:05]} 52. e6 {[%clk 0:00:21]}  Rxg4+ {[%clk 0:00:04]} 53. Ke5 {[%clk 0:00:22]}  fxe6 {[%clk 0:00:03]} 54. f7 {[%clk 0:00:22]}  Rf4 {[%clk 0:00:04]} 55. f8=Q+ {[%clk 0:00:21]}  Rxf8 {[%clk 0:00:04]} 56. Rxf8 {[%clk 0:00:22]}  Kh5 {[%clk 0:00:04]} 57. Ke4 {[%clk 0:00:21]}  Kg4 {[%clk 0:00:02]} 58. Rg8 {[%clk 0:00:21]}  a3 {[%clk 0:00:01]} 59. Ra8 {[%clk 0:00:21]}  Kh4 {[%clk 0:00:01]} 60. Rxa3 {[%clk 0:00:21]}  g4 {[%clk 0:00:02]} 61. Ra8 {[%clk 0:00:20]}  Kg3 {[%clk 0:00:02]} 62. Ke3 {[%clk 0:00:19]}  Kg2 {[%clk 0:00:02]} 63. Rg8 {[%clk 0:00:20]}  g3 {[%clk 0:00:02]} 64. Ke2 {[%clk 0:00:20]}  e5 {[%clk 0:00:02]} 65. Rg7 {[%clk 0:00:20]}  e4 {[%clk 0:00:02]} 66. Rg4 {[%clk 0:00:20]}  Kh2 {[%clk 0:00:02]} 67. Rh4+ {[%clk 0:00:20]}  Kg1 {[%clk 0:00:02]} 68. Rxe4 {[%clk 0:00:21]}  g2 {[%clk 0:00:03]} 69. Kf3 {[%clk 0:00:19]}  Kf1 {[%clk 0:00:02]} 70. Ra4 {[%clk 0:00:13]} 1-0


[Site "https://www.chess.com"]

[Event "Titled Tuesday Blitz April 12 Late 2022"]
[White "Zherebtsova, Alexandra"]
[Black "Hoffmann, Asa"]
[WhiteFideId "24129518"]
[BlackFideId "2001470"]
[WhiteElo "2025"]
[BlackElo "2117"]
[Result "0-1"]
[Round "08"]
[TimeControl "180+1"]
[Date "2022.04.13"]
[WhiteClock "0:00:01"]
[BlackClock "0:00:41"]

1. d4 {[%clk 0:03:00]}  Nf6 {[%clk 0:02:56]} 2. Nf3 {[%clk 0:03:00]}  d6 {[%clk 0:02:55]} 3. c4 {[%clk 0:02:59]}  c6 {[%clk 0:02:54]} 4. Nc3 {[%clk 0:02:58]}  Bf5 {[%clk 0:02:54]} 5. b3 {[%clk 0:02:48]}  h6 {[%clk 0:02:53]} 6. Bb2 {[%clk 0:02:48]}  Nbd7 {[%clk 0:02:53]} 7. Nd2 {[%clk 0:02:46]}  e5 {[%clk 0:02:52]} 8. e4 {[%clk 0:02:46]}  exd4 {[%clk 0:02:52]} 9. exf5 {[%clk 0:02:42]}  dxc3 {[%clk 0:02:52]} 10. Bxc3 {[%clk 0:02:42]}  Be7 {[%clk 0:02:51]} 11. Be2 {[%clk 0:02:40]}  O-O {[%clk 0:02:51]} 12. O-O {[%clk 0:02:40]}  d5 {[%clk 0:02:51]} 13. Qc2 {[%clk 0:02:34]}  Re8 {[%clk 0:02:48]} 14. Rad1 {[%clk 0:02:27]}  a5 {[%clk 0:02:43]} 15. Bf3 {[%clk 0:02:26]}  Nc5 {[%clk 0:02:31]} 16. Rfe1 {[%clk 0:02:08]}  d4 {[%clk 0:02:28]} 17. Nf1 {[%clk 0:01:57]}  d3 {[%clk 0:02:16]} 18. Qb2 {[%clk 0:01:54]}  Qd7 {[%clk 0:02:15]} 19. Ne3 {[%clk 0:01:52]}  Rad8 {[%clk 0:02:11]} 20. Bxa5 {[%clk 0:01:49]}  Ra8 {[%clk 0:01:57]} 21. Bc3 {[%clk 0:01:46]}  Nfe4 {[%clk 0:01:55]} 22. Bxg7 {[%clk 0:01:40]}  d2 {[%clk 0:01:40]} 23. Rf1 {[%clk 0:01:28]}  Qd3 {[%clk 0:01:36]} 24. f6 {[%clk 0:00:46]}  Bd6 {[%clk 0:01:33]} 25. Nf5 {[%clk 0:00:42]}  Be5 {[%clk 0:01:31]} 26. Nxh6+ {[%clk 0:00:39]}  Kh7 {[%clk 0:01:30]} 27. Bg4 {[%clk 0:00:26]}  Nxf6 {[%clk 0:01:09]} 28. Bf5+ {[%clk 0:00:15]}  Kxg7 {[%clk 0:01:03]} 29. Bxd3 {[%clk 0:00:11]}  Bxb2 {[%clk 0:01:02]} 30. Nf5+ {[%clk 0:00:11]}  Kf8 {[%clk 0:01:01]} 31. Rxd2 {[%clk 0:00:08]}  Bc3 {[%clk 0:00:56]} 32. Rc2 {[%clk 0:00:07]}  Nxd3 {[%clk 0:00:53]} 33. Rxc3 {[%clk 0:00:07]}  Nf4 {[%clk 0:00:53]} 34. Rf3 {[%clk 0:00:06]}  Ng6 {[%clk 0:00:45]} 35. Nd6 {[%clk 0:00:05]}  Re6 {[%clk 0:00:43]} 36. Nxb7 {[%clk 0:00:03]}  Ne5 {[%clk 0:00:41]} 37. Rh3 {[%clk 0:00:01]}  Kg7 {[%clk 0:00:41]} 38. Nc5 {[%clk 0:00:01]}  Rd6 {[%clk 0:00:41]} 0-1


[Site "https://www.chess.com"]

[Event "Titled Tuesday Blitz April 12 Late 2022"]
[White "Aldokhin, Ivan"]
[Black "Tregubov, Pavel V."]
[WhiteFideId "24115720"]
[BlackFideId "4115341"]
[WhiteElo "2231"]
[BlackElo "2341"]
[Result "1-0"]
[Round "09"]
[TimeControl "180+1"]
[Date "2022.04.12"]
[WhiteClock "0:00:03"]
[BlackClock "0:00:01"]

1. e4 {[%clk 0:02:59]}  e5 {[%clk 0:02:59]} 2. Nf3 {[%clk 0:02:59]}  Nf6 {[%clk 0:03:00]} 3. d4 {[%clk 0:02:58]}  Nxe4 {[%clk 0:02:59]} 4. Bd3 {[%clk 0:02:58]}  d5 {[%clk 0:02:59]} 5. Nxe5 {[%clk 0:02:58]}  Nd7 {[%clk 0:03:00]} 6. Qe2 {[%clk 0:02:58]}  Nxe5 {[%clk 0:02:50]} 7. Bxe4 {[%clk 0:02:59]}  dxe4 {[%clk 0:02:49]} 8. Qxe4 {[%clk 0:03:00]}  Be6 {[%clk 0:02:43]} 9. dxe5 {[%clk 0:02:59]}  Qd7 {[%clk 0:02:40]} 10. Nc3 {[%clk 0:02:57]}  O-O-O {[%clk 0:02:38]} 11. O-O {[%clk 0:02:35]}  Be7 {[%clk 0:02:23]} 12. Be3 {[%clk 0:02:03]}  Bf5 {[%clk 0:02:14]} 13. Qf3 {[%clk 0:02:03]}  a6 {[%clk 0:02:05]} 14. Rfe1 {[%clk 0:01:29]}  Qe6 {[%clk 0:01:58]} 15. h3 {[%clk 0:01:12]}  Bxc2 {[%clk 0:01:55]} 16. Rac1 {[%clk 0:01:08]}  Bg6 {[%clk 0:01:50]} 17. Na4 {[%clk 0:00:55]}  Kb8 {[%clk 0:01:46]} 18. Bc5 {[%clk 0:00:42]}  Rd3 {[%clk 0:01:40]} 19. Qf4 {[%clk 0:00:36]}  Rhd8 {[%clk 0:01:37]} 20. Bxe7 {[%clk 0:00:32]}  Qxe7 {[%clk 0:01:37]} 21. Nc5 {[%clk 0:00:32]}  R3d4 {[%clk 0:01:29]} 22. Qf3 {[%clk 0:00:32]}  R4d5 {[%clk 0:01:23]} 23. b4 {[%clk 0:00:26]}  c6 {[%clk 0:01:10]} 24. Qg3 {[%clk 0:00:23]}  Ka8 {[%clk 0:01:07]} 25. a4 {[%clk 0:00:23]}  Re8 {[%clk 0:00:54]} 26. e6 {[%clk 0:00:22]}  f6 {[%clk 0:00:21]} 27. Nd7 {[%clk 0:00:21]}  Rxd7 {[%clk 0:00:07]} 28. exd7 {[%clk 0:00:21]}  Qxd7 {[%clk 0:00:08]} 29. Rxe8+ {[%clk 0:00:16]}  Qxe8 {[%clk 0:00:08]} 30. Qc7 {[%clk 0:00:15]}  Bf7 {[%clk 0:00:04]} 31. b5 {[%clk 0:00:12]}  Bd5 {[%clk 0:00:01]} 32. bxa6 {[%clk 0:00:05]}  bxa6 {[%clk 0:00:01]} 33. Rb1 {[%clk 0:00:04]}  c5 {[%clk 0:00:01]} 34. Qxc5 {[%clk 0:00:03]}  Qc6 {[%clk 0:00:01]} 35. Qf8+ {[%clk 0:00:03]}  Ka7 {[%clk 0:00:01]} 36. Qb8# {[%clk 0:00:03]} 1-0


[Site "https://www.chess.com"]